bitfinex/quotes_SOLUSD_20250920
["timestamp","ask_amount","ask_price","bid_price","bid_amount"]
[1758407620849,6.10523225,240.13,240.11,0.77]
[1758407621061,0.66,240.14,240.11,0.77]
[1758407621249,3.8483302,240.13,240.11,0.77]
[1758407621469,0.66,240.14,240.11,0.77]
[1758407621662,3.84833054,240.13,240.11,0.77]
[1758407621866,0.66,240.14,240.11,0.77]
[1758407622075,3.8483306,240.13,240.11,0.77]
[1758407622279,0.66,240.14,240.11,0.77]
[1758407622575,3.84845412,240.13,240.11,0.77]
[1758407622791,0.66,240.14,240.11,0.77]
[1758407623079,3.84845402,240.13,240.11,0.77]
[1758407623275,1.04216545,240.12,240.11,0.77]
[1758407626775,1.04216545,240.12,240.11,0.1]
[1758407627277,1.70216545,240.12,240.11,0.1]
[1758407628883,1.04216545,240.12,240.11,0.1]
[1758407629059,1.70216545,240.12,240.11,0.1]
[1758407629260,1.04216545,240.12,240.11,0.1]
[1758407630084,1.04216551,240.12,240.11,0.1]
[1758407632376,4.82425821,240.14,240.11,0.1]
[1758407632574,3.84956026,240.13,240.11,0.1]
[1758407632773,4.82425821,240.14,240.12,1.24454321]
[1758407632976,4.50956069,240.13,240.12,1.24454321]
[1758407633285,6.76766611,240.13,240.12,1.24454321]
[1758407636084,6.10766611,240.13,240.12,1.24454321]
[1758407636475,6.79766611,240.13,240.12,1.24454321]
[1758407640471,6.79807335,240.13,240.12,1.24454321]
[1758407642875,6.79807335,240.13,240.11,0.1]
[1758407643198,1.7421399,240.12,240.11,0.1]
[1758407643399,1.0421399,240.12,240.11,0.1]
[1758407645095,3.85089803,240.12,240.11,0.1]
[1758407649494,6.11162094,240.12,240.11,0.1]
[1758407652401,10.27620531,240.12,240.11,0.1]
[1758407652903,10.97620531,240.12,240.11,0.1]
[1758407654919,12.22074852,240.12,240.11,0.1]
[1758407657496,12.22158483,240.12,240.11,0.1]
[1758407662294,13.89141722,240.12,240.11,0.1]
[1758407666702,31.2,240.09,240.06,0.04896868]
[1758407666896,7.35700046,240.08,240.06,0.04896868]
[1758407667117,6.11245725,240.07,240.06,0.04896868]
[1758407667300,6.78245725,240.07,240.06,0.04896868]
[1758407669318,10.94790899,240.07,240.06,0.04896868]
[1758407670198,10.27790899,240.07,240.06,0.04896868]
[1758407671334,10.27790899,240.07,240.06,0.75896868]
[1758407672542,10.27790899,240.07,240.06,0.04896868]
[1758407675823,10.27790899,240.07,240.06,0.75896868]
[1758407677031,10.27790899,240.07,240.06,0.04896868]
[1758407693640,10.94790899,240.07,240.06,0.04896868]
[1758407699547,10.94840859,240.07,240.06,0.04896868]
[1758407701543,10.94186271,240.07,240.06,0.04896868]
[1758407702247,10.91157917,240.07,240.06,0.04896868]
[1758407706351,7.6385003,240.07,240.06,0.04896868]
[1758407706653,20.16328895,240.07,240.06,0.04896868]
[1758407707866,22.39522039,240.07,240.06,0.04896868]
[1758407708351,25.89903109,240.07,240.06,0.04896868]
[1758407708655,26.9417548,240.07,240.06,0.04896868]
[1758407710757,23.4379441,240.07,240.06,0.04896868]
[1758407710941,6.07770371,240.07,240.06,0.70896868]
[1758407711657,10.24315545,240.07,240.06,0.70896868]
[1758407712638,10.24307874,240.07,240.06,0.70896868]
[1758407713060,6.077627,240.07,240.06,0.70896868]
[1758407713371,6.077627,240.07,240.06,2.65461638]
[1758407713944,10.24307874,240.07,240.06,0.70896868]
[1758407714462,10.24307874,240.07,240.06,0.04896868]
[1758407714760,10.93307874,240.07,240.06,0.04896868]
[1758407715759,23.45786738,240.07,240.06,0.04896868]
[1758407716139,22.76786738,240.07,240.06,0.04896868]
[1758407726260,23.46786738,240.07,240.06,0.04896868]
[1758407732671,23.46786737,240.07,240.06,0.04896868]
[1758407736576,23.397746,240.07,240.06,0.04896868]
[1758407739677,55.057746,240.07,240.06,0.04896868]
[1758407739976,31.2,240.05,240.04,0.2]
[1758407740156,37.20750562,240.05,240.04,0.2]
[1758407740475,37.90750562,240.05,240.04,0.2]
[1758407740673,39.57782612,240.05,240.04,0.2]
[1758407740853,43.74362491,240.05,240.04,0.2]
[1758407742371,47.2538853,240.05,240.04,0.2]
[1758407743169,43.74362491,240.05,240.04,0.2]
[1758407744287,47.25174678,240.05,240.04,0.2]
[1758407754503,43.74362491,240.05,240.04,0.2]
[1758407759414,43.04362491,240.05,240.04,0.2]
[1758407760500,38.87782612,240.05,240.04,0.85]
[1758407763420,38.79905709,240.05,240.04,0.85]
[1758407766026,38.79905709,240.05,240.04,0.2]
[1758407766210,42.96485588,240.05,240.04,0.2]
[1758407768237,42.96485588,240.05,240.04,0.88]
[1758407768724,42.96499366,240.05,240.04,0.2]
[1758407769522,37.12887437,240.05,240.04,0.2]
[1758407770809,41.29467316,240.05,240.04,0.2]
[1758407776532,41.29467316,240.05,240.02,0.88]
[1758407776737,5.92887437,240.04,240.03,0.68]
[1758407777039,5.92887437,240.04,240.03,1.92538779]
[1758407778432,10.0948467,240.04,240.03,1.92538779]
[1758407779736,10.0948467,240.04,240.03,1.24538779]
[1758407789048,5.92887437,240.04,240.03,1.24538779]
[1758407793764,5.92887437,240.04,240.03,1.94580841]
[1758407799173,10.7648467,240.04,240.02,2.14580841]
[1758407799335,6.59887437,240.03,240.02,0.2]
[1758407799532,6.60263199,240.03,240.02,0.2]
[1758407800858,10.76877788,240.03,240.02,0.2]
[1758407803558,10.09877788,240.03,240.02,0.2]
[1758407804860,10.09877788,240.03,240.02,2.14580841]
[1758407805763,10.76877788,240.03,240.02,2.14580841]
[1758407807662,10.76947565,240.03,240.02,2.14580841]
[1758407810259,10.09947565,240.03,240.02,2.14580841]
[1758407810646,10.09947565,240.03,240.02,0.2]
[1758407810845,10.76947565,240.03,240.02,0.2]
[1758407811654,12.91528406,240.03,240.02,0.2]
[1758407815865,12.84091103,240.03,240.02,0.2]
[1758407821465,16.3490329,240.03,240.02,0.2]
[1758407822268,12.84091103,240.03,240.02,0.2]
[1758407822565,12.83987564,240.03,240.02,0.2]
[1758407822965,13.59559401,239.99,239.96,1e-08]
[1758407823194,13.59559401,239.99,239.91,0.1]
[1758407823195,31.2,239.93,239.91,0.1]
[1758407823481,43.06145461,239.92,239.91,0.1]
[1758407823682,45.432822,239.92,239.91,0.1]
[1758407823861,41.93509714,239.92,239.91,0.1]
[1758407825271,46.10315315,239.92,239.91,1e-08]
[1758407825577,31.2,239.89,239.84,0.22620036]
[1758407825783,33.14580841,239.85,239.84,0.22620036]
[1758407825985,39.68372975,239.85,239.84,0.22620036]
[1758407826286,42.06544639,239.85,239.84,0.22620036]
[1758407826696,44.56300221,239.85,239.84,0.22620036]
[1758407828981,43.88300221,239.85,239.84,0.22620036]
[1758407829165,42.5709144,239.85,239.84,0.22620036]
[1758407830369,10.6709144,239.85,239.84,0.22620036]
[1758407830588,42.5709144,239.85,239.84,0.22620036]
[1758407831076,40.60510599,239.85,239.84,0.22620036]
[1758407839593,3.84583353,239.85,239.84,0.93620036]
[1758407839796,5.21205743,239.85,239.84,0.93620036]
[1758407839994,7.98293691,239.85,239.84,0.93620036]
[1758407842126,5.21205743,239.85,239.84,0.93620036]
[1758407843314,7.98271838,239.85,239.84,0.93620036]
[1758407849413,7.98271838,239.85,239.84,0.22620036]
[1758407857708,8.68271838,239.85,239.84,0.22620036]
[1758407858304,11.85107019,239.85,239.84,0.22620036]
[1758407858507,15.34034654,239.85,239.84,0.22620036]
[1758407859226,11.85107019,239.85,239.84,0.22620036]
[1758407860332,31.2,239.82,239.81,0.3]
[1758407860535,3.81344592,239.82,239.81,0.3]
[1758407860716,4.51344592,239.82,239.81,0.3]
[1758407861326,6.43579663,239.82,239.81,0.3]
[1758407861530,10.60559064,239.82,239.81,0.3]
[1758407863126,14.08486267,239.82,239.81,0.3]
[1758407864223,10.60559064,239.82,239.81,0.3]
[1758407865224,14.0953463,239.82,239.81,0.3]
[1758407866429,10.60559064,239.82,239.81,0.3]
[1758407867317,31.2,239.8,239.78,0.2]
[1758407867515,9.23601259,239.79,239.78,0.87]
[1758407868451,13.40632828,239.79,239.78,0.87]
[1758407869134,9.90611232,239.79,239.78,0.87]
[1758407869321,9.90611232,239.79,239.78,2.11754202]
[1758407870109,5.73579663,239.79,239.78,2.11754202]
[1758407870626,5.73685462,239.79,239.78,2.11754202]
[1758407871826,3.81450391,239.79,239.78,2.11754202]
[1758407872229,3.81450391,239.79,239.78,6.28803163]
[1758407873005,3.81450391,239.79,239.78,2.11754202]
[1758407873941,2.77066095,239.79,239.78,2.11754202]
[1758407879749,2.77066095,239.79,239.78,6.28803163]
[1758407881141,4.16969276,239.83,239.78,6.28803163]
[1758407881475,3.84620188,239.82,239.81,1.24754202]
[1758407882655,2.80251724,239.82,239.81,1.94754202]
[1758407882838,16.13742588,239.87,239.81,6.11750991]
[1758407883039,16.13742588,239.87,239.82,0.7]
[1758407883040,3.8464131,239.86,239.82,0.7]
[1758407883347,2.80281754,239.85,239.83,0.7]
[1758407883535,2.80281754,239.84,239.83,0.7]
[1758407884144,2.80281754,239.84,239.83,1.94754202]
[1758407884342,16.82742588,239.87,239.83,1.94754202]
[1758407884540,3.8451172,239.86,239.84,1.24754202]
[1758407884752,2.8016142,239.85,239.84,1.94754202]
[1758407887133,2.8016142,239.85,239.84,1.24754202]
[1758407888440,2.8016142,239.85,239.81,31.86]
[1758407888638,0.67,239.85,239.82,1.24754202]
[1758407889560,0.67,239.85,239.82,1.94754202]
[1758407892738,0.67,239.84,239.81,31.86]
[1758407893634,4.16909957,239.86,239.81,32.56]
[1758407893848,3.46860643,239.85,239.81,32.56]
[1758407894050,0.67,239.85,239.81,32.56]
[1758407894247,4.83934075,239.85,239.81,32.56]
[1758407894537,4.83934075,239.85,239.81,33.80754202]
[1758407895654,4.83934075,239.85,239.82,0.7]
[1758407896567,2.80020164,239.84,239.82,0.7]
[1758407896775,4.83934075,239.85,239.82,0.7]
[1758407896968,2.80008413,239.84,239.82,0.7]
[1758407897265,4.83934075,239.85,239.82,0.7]
[1758407897764,4.16909864,239.86,239.81,33.10754202]
[1758407897968,0.67,239.84,239.81,33.80754202]
[1758407900669,4.83909864,239.86,239.81,33.80754202]
[1758407900869,4.51292632,239.85,239.81,33.10754202]
[1758407901160,2.79934167,239.84,239.82,0.7]
[1758407901370,0.67,239.85,239.82,0.7]
[1758407901558,0.67,239.85,239.81,33.10754202]
[1758407901758,4.83930557,239.85,239.81,33.80754202]
[1758407902361,4.83930557,239.85,239.81,33.10754202]
[1758407902562,4.83930557,239.85,239.82,0.7]
[1758407903271,4.83930557,239.85,239.81,33.10754202]
[1758407903464,4.83930557,239.85,239.81,33.80754202]
[1758407904777,4.83930557,239.85,239.81,33.10754202]
[1758407904977,4.83930557,239.85,239.82,0.7]
[1758407905275,20.97651155,239.87,239.83,0.7]
[1758407905450,4.5129961,239.86,239.81,37.27749758]
[1758407905650,2.79943723,239.85,239.82,0.7]
[1758407905852,0.67,239.86,239.82,0.7]
[1758407906078,2.79943718,239.85,239.82,0.7]
[1758407906279,4.83921188,239.86,239.83,0.72]
[1758407906456,2.7996277,239.85,239.83,0.72]
[1758407906659,4.83921188,239.86,239.83,0.72]
[1758407906878,2.79962739,239.85,239.83,0.72]
[1758407907084,4.83921188,239.86,239.83,0.72]
[1758407907266,2.79962739,239.85,239.83,0.72]
[1758407907460,4.83921188,239.86,239.83,0.72]
[1758407907655,2.79984772,239.85,239.83,0.72]
[1758407907855,4.83921188,239.86,239.81,33.82754202]
[1758407908178,2.7998468,239.85,239.82,0.72]
[1758407908366,4.83921188,239.86,239.82,0.72]
[1758407908567,3.84369873,239.85,239.82,0.72]
[1758407908764,2.80013992,239.84,239.82,0.72]
[1758407908966,4.83921188,239.86,239.82,0.72]
[1758407909169,3.84365786,239.85,239.82,0.72]
[1758407909461,2.80009146,239.84,239.82,0.72]
[1758407909762,4.83921188,239.86,239.82,0.72]
[1758407909961,3.84435603,239.85,239.82,0.72]
[1758407910180,2.80078975,239.84,239.82,0.72]
[1758407910370,4.83921188,239.86,239.82,0.72]
[1758407910676,8.72401861,239.85,239.82,0.72]
[1758407910879,2.80117843,239.84,239.82,0.72]
[1758407911080,4.8792739,239.85,239.82,0.72]
[1758407911279,2.80117796,239.84,239.82,0.72]
[1758407911582,4.8792739,239.85,239.82,0.72]
[1758407911882,2.80160114,239.84,239.82,0.72]
[1758407912077,0.71,239.85,239.82,0.72]
[1758407912278,2.80160122,239.84,239.82,0.72]
[1758407912475,0.71,239.85,239.82,0.72]
[1758407912677,2.80251808,239.84,239.82,0.72]
[1758407912876,0.71,239.85,239.82,0.72]
[1758407913185,2.80251808,239.84,239.82,0.72]
[1758407913371,0.71,239.85,239.82,0.72]
[1758407913575,2.80315388,239.84,239.82,0.72]
[1758407913771,0.71,239.85,239.82,0.72]
[1758407913974,2.80315388,239.84,239.82,0.72]
[1758407914281,2.80371105,239.83,239.82,0.72]
[1758407918194,2.80371105,239.83,239.81,37.97894746]
[1758407918378,0.71,239.85,239.81,37.97894746]
[1758407918568,3.84872243,239.84,239.81,37.97894746]
[1758407918767,2.80516348,239.83,239.81,38.69894746]
[1758407918981,0.71,239.85,239.81,38.69894746]
[1758407919163,3.84872255,239.84,239.81,38.69894746]
[1758407919373,2.80516348,239.83,239.81,38.69894746]
[1758407919574,0.71,239.85,239.81,38.69894746]
[1758407919767,3.8490637,239.84,239.81,38.69894746]
[1758407919967,2.80550463,239.83,239.81,38.69894746]
[1758407920175,0.71,239.85,239.81,38.69894746]
[1758407920376,3.84939669,239.84,239.81,38.69894746]
[1758407920580,2.80583762,239.83,239.81,38.69894746]
[1758407920777,0.71,239.85,239.81,38.69894746]
[1758407920999,3.84945095,239.84,239.81,38.69894746]
[1758407921297,3.84945091,239.83,239.81,38.69894746]
[1758407921504,2.80589188,239.82,239.81,38.69894746]
[1758407927279,3.849451,239.82,239.81,38.69894746]
[1758407934317,3.849451,239.82,239.81,36.74993848]
[1758407934489,3.849451,239.82,239.81,38.69894746]
[1758407934685,3.849451,239.82,239.81,37.97894746]
[1758407942509,2.80589188,239.82,239.81,37.97894746]
[1758407943103,0.71,239.84,239.81,37.97894746]
[1758407943405,2.80823661,239.83,239.81,37.97894746]
[1758407943730,0.71,239.84,239.81,37.97894746]
[1758407944029,2.8082281,239.83,239.81,37.97894746]
[1758407944231,16.13742588,239.87,239.81,37.97894746]
[1758407944528,3.8515578,239.86,239.85,1.94900898]
[1758407944690,3.8515578,239.86,239.85,33.70900898]
[1758407947199,2.808065,239.86,239.85,33.70900898]
[1758407947395,2.808065,239.86,239.85,46.24374063]
[1758407948717,3.478065,239.86,239.85,46.24374063]
[1758407948913,3.478065,239.86,239.85,44.29473165]
[1758407966241,2.808065,239.86,239.85,46.94374063]
[1758407967535,2.808065,239.86,239.85,46.24374063]
[1758407970928,2.808065,239.86,239.85,44.29473165]
[1758407973446,2.808065,239.86,239.85,44.99473165]
[1758407974344,2.808065,239.86,239.85,51.11301309]
[1758407974541,0.69,239.93,239.85,51.11301309]
[1758407974853,5.78670585,239.92,239.88,1.94900898]
[1758407975142,3.8483685,239.91,239.89,31.74]
[1758407975341,2.80500843,239.9,239.89,31.74]
[1758407976051,2.80500843,239.9,239.89,36.60857726]
[1758407976733,2.80500843,239.9,239.89,40.77641235]
[1758407977846,2.80500843,239.9,239.89,42.02292085]
[1758407981644,2.80500843,239.9,239.89,37.15434359]
[1758407982235,0.69,239.93,239.89,37.15434359]
[1758407982440,4.53555667,239.92,239.89,37.15434359]
[1758407982633,2.80223772,239.91,239.89,37.15434359]
[1758407982933,0.69,239.92,239.89,37.15434359]
[1758407983133,2.80223733,239.91,239.89,37.15434359]
[1758407983334,0.69,239.92,239.89,37.15434359]
[1758407983551,2.80212848,239.91,239.89,37.15434359]
[1758407983735,0.69,239.92,239.89,37.15434359]
[1758407983942,2.80212994,239.91,239.89,37.15434359]
[1758407984143,0.69,239.92,239.89,37.15434359]
[1758407984348,2.80195554,239.91,239.89,37.15434359]
[1758407984640,0.69,239.92,239.89,37.15434359]
[1758407984835,2.80194353,239.91,239.89,37.15434359]
[1758407985030,0.69,239.92,239.89,37.15434359]
[1758407985254,2.80194353,239.91,239.89,37.15434359]
[1758407985427,0.69,239.92,239.89,37.15434359]
[1758407985628,2.80179719,239.91,239.89,37.15434359]
[1758407985858,0.69,239.92,239.89,37.15434359]
[1758407986040,2.80180903,239.91,239.89,37.15434359]
[1758407986233,0.69,239.92,239.89,37.15434359]
[1758407986433,2.80178797,239.91,239.89,37.15434359]
[1758407986644,0.69,239.92,239.89,37.15434359]
[1758407986862,2.80178797,239.91,239.89,37.15434359]
[1758407987042,0.69,239.92,239.89,37.15434359]
[1758407987242,2.80178797,239.91,239.89,37.15434359]
[1758407987444,0.69,239.92,239.89,37.85434359]
[1758407987635,2.8018029,239.91,239.89,37.85434359]
[1758407987836,0.69,239.92,239.89,37.85434359]
[1758407988052,2.80192033,239.91,239.89,37.85434359]
[1758407988260,0.69,239.92,239.89,37.85434359]
[1758407988464,2.80198747,239.91,239.89,37.85434359]
[1758407988755,0.69,239.92,239.89,37.85434359]
[1758407992459,0.69,239.92,239.89,36.60783509]
[1758407992634,0.69,239.92,239.89,37.85434359]
[1758407993745,2.80129532,239.91,239.9,31.72]
[1758407994136,2.80129532,239.92,239.9,31.72]
[1758407994336,2.80129532,239.91,239.9,31.72]
[1758407994547,2.80129532,239.92,239.9,36.57791883]
[1758407994751,2.80129532,239.91,239.9,36.57791883]
[1758407994963,2.80129532,239.92,239.9,31.72]
[1758407995261,0.69,239.93,239.9,35.88766059]
[1758407995452,2.80119236,239.92,239.9,31.72]
[1758407995766,0.69,239.93,239.91,4.16770987]
[1758407996061,0.69,239.93,239.92,31.72]
[1758407996357,4.53452213,239.93,239.92,31.72]
[1758407997459,8.70240442,239.93,239.92,31.72]
[1758407998259,7.65911139,239.93,239.92,31.72]
[1758408000266,8.70240437,239.93,239.92,31.72]
[1758408011064,8.01240437,239.93,239.92,31.72]
[1758408013870,8.01240437,239.93,239.89,0.7]
[1758408014074,2.8012291,239.92,239.9,32.41]
[1758408014275,2.8012291,239.91,239.9,32.41]
[1758408018373,3.84452231,239.91,239.9,32.41]
[1758408022187,3.84452231,239.91,239.9,0.69]
[1758408022396,3.84452231,239.91,239.9,32.41]
[1758408025975,3.84452231,239.91,239.9,31.72]
[1758408032114,3.84452231,239.91,239.89,0.69]
[1758408032290,4.87788229,239.93,239.9,31.72]
[1758408032492,3.85003367,239.92,239.9,31.72]
[1758408032686,3.85003367,239.91,239.9,31.72]
[1758408035212,11.91446886,239.91,239.83,1.9565085]
[1758408035415,5.80654217,239.9,239.84,62.92]
[1758408035624,4.56003367,239.89,239.84,62.92]
[1758408035915,3.5167404,239.88,239.84,62.92]
[1758408036100,2.8067404,239.87,239.84,62.92]
[1758408036418,0.71,239.88,239.84,63.63]
[1758408039314,0.71,239.88,239.84,67.79944136]
[1758408040699,0.71,239.88,239.85,0.71]
[1758408040913,0.71,239.88,239.86,31.72]
[1758408041420,4.87878954,239.88,239.86,31.72]
[1758408041917,2.80524947,239.87,239.86,31.72]
[1758408042117,2.80524947,239.87,239.85,0.71]
[1758408042321,4.87878954,239.88,239.86,31.72]
[1758408042518,3.51492343,239.87,239.83,0.71]
[1758408042718,0.71,239.87,239.84,31.72]
[1758408043102,0.71,239.86,239.84,31.72]
[1758408043811,17.24733238,239.88,239.84,31.72]
[1758408044001,3.5145759,239.87,239.84,31.72]
[1758408044203,0.71,239.87,239.84,31.72]
[1758408044918,4.87892872,239.87,239.84,31.72]
[1758408045111,4.87892872,239.87,239.84,32.43]
[1758408046002,0.71,239.86,239.85,31.72]
[1758408046221,3.51386896,239.86,239.85,31.72]
[1758408049613,2.80386896,239.86,239.85,31.72]
[1758408050516,4.87892872,239.87,239.85,31.72]
[1758408053713,4.87892872,239.87,239.83,0.71]
[1758408053911,4.87892872,239.87,239.84,31.72]
[1758408054127,4.87892872,239.87,239.83,0.71]
[1758408054327,4.87892872,239.87,239.84,31.72]
[1758408054832,0.71,239.86,239.84,31.72]
[1758408055513,3.51157077,239.86,239.84,31.72]
[1758408057445,4.16927246,239.85,239.84,31.72]
[1758408058641,4.16927246,239.85,239.79,1.94873596]
[1758408058642,4.83927246,239.85,239.79,0.69]
[1758408058847,4.83927246,239.85,239.8,31.72]
[1758408059019,0.67,239.84,239.8,32.41]
[1758408059744,4.16927246,239.85,239.81,0.69]
[1758408059941,4.83927246,239.85,239.81,0.69]
[1758408060831,4.83927246,239.85,239.82,0.69]
[1758408061031,4.83927246,239.85,239.83,31.72]
[1758408061226,4.83927246,239.85,239.84,31.72]
[1758408064342,4.16927246,239.85,239.84,31.72]
[1758408064645,4.86927246,239.85,239.84,31.72]
[1758408068256,17.40452786,239.85,239.84,31.72]
[1758408070938,20.20510213,239.85,239.84,31.72]
[1758408072973,20.20510213,239.85,239.81,0.69]
[1758408073195,4.74931023,239.84,239.81,0.69]
[1758408073459,0.7,239.83,239.82,31.72]
[1758408073659,4.74931023,239.84,239.82,31.72]
[1758408073970,12.53630305,239.83,239.82,31.72]
[1758408074562,17.40592319,239.83,239.82,31.72]
[1758408076749,20.20708452,239.83,239.82,31.72]
[1758408081977,19.50708452,239.83,239.82,32.44]
[1758408085973,19.50708452,239.83,239.82,31.72]
[1758408094492,19.50708452,239.83,239.82,32.39]
[1758408095181,19.50708452,239.83,239.82,31.72]
[1758408100600,15.33746438,239.83,239.82,31.72]
[1758408104282,16.38109688,239.83,239.82,31.72]
[1758408109782,20.55071702,239.83,239.82,31.72]
[1758408110983,21.25071702,239.83,239.82,31.72]
[1758408111180,21.25071702,239.83,239.81,31.72]
[1758408111381,4.74898843,239.82,239.81,31.72]
[1758408112203,31.2,239.79,239.78,0.2]
[1758408112522,36.29262104,239.79,239.78,0.2]
[1758408112686,36.99262104,239.79,239.78,0.2]
[1758408113087,49.5299719,239.79,239.78,0.2]
[1758408113485,52.65665498,239.79,239.78,0.2]
[1758408113690,53.70052705,239.79,239.78,0.2]
[1758408119583,55.63422817,239.79,239.78,0.2]
[1758408120281,54.93422817,239.79,239.78,0.2]
[1758408120482,53.00052705,239.79,239.78,0.2]
[1758408123812,51.75269995,239.79,239.78,0.2]
[1758408124006,53.00052705,239.79,239.78,0.2]
[1758408125925,53.68052705,239.79,239.78,0.2]
[1758408127516,6.97147702,239.79,239.78,0.91]
[1758408128408,2.80116133,239.8,239.78,0.91]
[1758408128599,2.79724135,239.8,239.78,0.91]
[1758408128915,2.91968348,239.81,239.78,0.91]
[1758408128916,2.79724135,239.79,239.78,0.91]
[1758408129109,2.79724135,239.8,239.78,0.91]
[1758408129417,2.79724135,239.79,239.78,0.91]
[1758408132020,6.96755704,239.79,239.78,0.91]
[1758408132514,4.17031569,239.79,239.78,0.2]
[1758408132704,6.96755704,239.79,239.78,0.2]
[1758408133300,4.17031569,239.79,239.78,0.2]
[1758408133504,6.96755704,239.79,239.78,0.2]
[1758408133710,4.17031569,239.79,239.78,0.2]
[1758408134018,6.96755704,239.79,239.78,0.2]
[1758408147635,6.96755704,239.79,239.78,0.87]
[1758408148506,6.96755704,239.79,239.78,0.2]
[1758408154220,8.01142039,239.79,239.78,0.2]
[1758408168721,2.79724135,239.79,239.78,0.87]
[1758408169248,2.79724135,239.79,239.78,0.2]
[1758408169439,2.79724135,239.79,239.78,0.87]
[1758408170941,2.79724135,239.79,239.78,0.2]
[1758408179062,3.51724135,239.79,239.78,0.2]
[1758408185946,7.68755704,239.79,239.78,0.2]
[1758408195574,2.79724135,239.79,239.78,0.87]
[1758408195782,2.79724135,239.79,239.78,0.2]
[1758408198357,2.79724135,239.79,239.78,0.87]
[1758408205287,2.79724135,239.79,239.78,0.2]
[1758408207192,0.7,239.81,239.78,0.2]
[1758408207489,2.80674073,239.8,239.78,0.2]
[1758408207690,2.80674073,239.79,239.78,0.2]
[1758408208465,2.80674073,239.79,239.78,0.88]
[1758408208789,2.80674073,239.79,239.78,32.7]
[1758408209274,2.80674073,239.79,239.78,32.02]
[1758408220182,2.80674073,239.79,239.78,32.7]
[1758408220802,2.80674073,239.79,239.78,32.02]
[1758408227412,2.80766476,239.79,239.78,32.02]
[1758408233223,2.80766476,239.79,239.78,0.2]
[1758408233392,2.80766476,239.79,239.78,31.98]
[1758408233816,2.80766476,239.79,239.78,0.2]
[1758408234117,2.80766476,239.79,239.78,31.96]
[1758408240322,2.80766476,239.79,239.78,36.83048961]
[1758408241203,2.80766476,239.79,239.78,36.13048961]
[1758408241636,2.80766476,239.79,239.78,0.2]
[1758408241797,2.80766476,239.79,239.78,31.96]
[1758408244238,2.80766476,239.79,239.78,0.2]
[1758408244398,2.80766476,239.79,239.78,31.96]
[1758408246027,2.80766476,239.79,239.78,32.68]
[1758408248029,2.80766476,239.79,239.78,31.96]
[1758408248234,2.80766476,239.79,239.78,36.12982561]
[1758408251633,2.80766476,239.79,239.78,40.30031522]
[1758408251940,29.58972563,239.84,239.78,41.02031522]
[1758408252137,2.80582398,239.83,239.79,0.72]
[1758408252340,2.80582398,239.82,239.8,31.74]
[1758408252634,0.71,239.83,239.8,31.74]
[1758408252815,2.80498493,239.82,239.8,31.74]
[1758408253018,0.71,239.83,239.8,31.74]
[1758408259240,3.51318474,239.83,239.8,31.74]
[1758408259644,3.51318474,239.83,239.8,32.46]
[1758408260818,0.71,239.83,239.8,32.46]
[1758408262038,28.87972563,239.84,239.82,1.24799167]
[1758408262239,28.87972563,239.84,239.83,31.74]
[1758408262424,28.87972563,239.84,239.83,32.46]
[1758408262819,28.87972563,239.84,239.83,44.99420794]
[1758408263444,28.87972563,239.84,239.83,49.16382808]
[1758408283849,28.87972563,239.84,239.83,51.11225145]
[1758408284336,28.87972563,239.84,239.83,64.70784546]
[1758408289969,0.69,239.87,239.84,13.59559401]
[1758408290142,0.69,239.87,239.86,1.94842337]
[1758408290664,0.69,239.87,239.86,14.48106045]
[1758408290876,0.69,239.87,239.86,18.65015909]
[1758408292175,12.53263708,239.92,239.86,18.65015909]
[1758408292465,0.69,239.9,239.88,1.94842337]
[1758408292654,12.53263707,239.93,239.89,31.72]
[1758408292850,4.1676111,239.95,239.89,31.72]
[1758408293048,6.96692689,239.95,239.89,31.72]
[1758408293253,16.02195286,239.94,239.89,31.72]
[1758408293449,0.69,239.93,239.89,31.72]
[1758408293642,0.69,239.92,239.89,35.88843182]